bitfinex-derivatives/quotes_SOLF0:USTF0_20251117
["timestamp","ask_amount","ask_price","bid_price","bid_amount"]
[1763416472000,6.83057664,130.53,130.49,0.04928238]
[1763416472196,3.21,130.52,130.49,0.04928238]
[1763416472896,3.21,130.52,130.49,3.33928238]
[1763416473495,3.21,130.52,130.49,0.04928238]
[1763416474103,3.37,130.52,130.49,3.33928238]
[1763416474397,3.37,130.52,130.49,0.04928238]
[1763416474797,3.37,130.52,130.49,3.33928238]
[1763416476406,3.37,130.52,130.49,0.04928238]
[1763416477513,3.37,130.5,130.49,0.04928238]
[1763416477705,3.37,130.5,130.45,3.29]
[1763416477911,3.37,130.48,130.44,3.29]
[1763416478805,3.41862485,130.47,130.45,0.05409735]
[1763416485320,0.04862485,130.47,130.46,3.29]
[1763416490727,0.04862485,130.47,130.45,3.34409735]
[1763416491122,0.04862485,130.47,130.46,3.29]
[1763416491922,3.37,130.52,130.46,3.29]
[1763416492130,3.37,130.52,130.48,3.29]
[1763416493034,3.41994577,130.51,130.49,0.05638813]
[1763416498630,0.04994577,130.51,130.49,3.34638813]
[1763416498823,0.04994577,130.51,130.5,3.29]
[1763416503735,3.46994577,130.51,130.49,0.05638813]
[1763416504428,3.42,130.5,130.49,0.05638813]
[1763416507637,3.86361187,130.49,130.45,6.86057664]
[1763416507837,3.42,130.49,130.45,6.86057664]
[1763416508331,3.42,130.49,130.46,3.24]
[1763416508538,3.47911182,130.49,130.46,3.29541297]
[1763416509324,3.47911182,130.49,130.46,0.05541297]
[1763416510332,3.47911182,130.49,130.46,3.29541297]
[1763416511334,0.05911182,130.49,130.46,3.29541297]
[1763416511537,0.05911182,130.49,130.48,3.24]
[1763416513246,0.05911182,130.49,130.47,3.24]
[1763416513541,0.05911182,130.49,130.48,3.24]
[1763416518546,3.42,130.54,130.48,3.24]
[1763416518846,3.42,130.54,130.5,6.85057664]
[1763416519549,3.45264911,130.53,130.51,0.05159098]
[1763416520748,3.45264911,130.53,130.51,3.28159098]
[1763416521843,3.45264911,130.53,130.51,0.05159098]
[1763416522643,0.05264911,130.53,130.52,6.85057664]
[1763416523450,3.4,130.58,130.53,3.23]
[1763416523645,3.4,130.58,130.56,3.23]
[1763416523837,3.4,130.6,130.58,3.23]
[1763416524040,3.4,130.61,130.58,3.23]
[1763416524352,3.44941186,130.61,130.58,3.28710962]
[1763416524553,0.04941186,130.61,130.6,3.23]
[1763416524950,3.4,130.67,130.6,3.23]
[1763416525249,3.4,130.67,130.62,3.62057664]
[1763416526052,3.4,130.65,130.63,0.05086917]
[1763416526245,0.05590451,130.66,130.64,3.23]
[1763416526451,0.05590451,130.66,130.63,3.67144581]
[1763416526452,0.05590451,130.66,130.65,6.85057664]
[1763416526651,0.05590451,130.66,130.65,3.62057664]
[1763416526948,0.05590451,130.66,130.64,3.23]
[1763416527751,0.05590451,130.66,130.65,8.87477671]
[1763416527958,3.4,130.72,130.66,3.23]
[1763416528948,3.4573133,130.7,130.68,0.04875351]
[1763416530556,0.0573133,130.7,130.68,3.27875351]
[1763416530757,3.4573133,130.7,130.68,0.04875351]
[1763416534749,5.64477671,130.69,130.62,3.21]
[1763416535058,3.39,130.68,130.62,3.21]
[1763416535860,3.44711624,130.66,130.64,0.05789755]
[1763416541658,0.05711624,130.66,130.64,3.26789755]
[1763416542064,3.44711624,130.66,130.64,0.05789755]
[1763416550961,3.44711624,130.66,130.56,3.21]
[1763416551162,3.39,130.64,130.57,3.21]
[1763416552271,3.4389689,130.62,130.59,3.26205404]
[1763416553776,3.4389689,130.62,130.59,0.05205404]
[1763416559678,5.64477671,130.61,130.53,3.21]
[1763416559882,3.4389689,130.62,130.53,3.21]
[1763416559883,3.39,130.57,130.53,3.21]
[1763416560080,3.39,130.6,130.53,3.21]
[1763416560677,3.39,130.63,130.54,3.21]
[1763416560876,0.05213186,130.58,130.56,3.21]
[1763416561082,0.05773056,130.58,130.56,3.2616215]
[1763416561290,0.05773056,130.58,130.57,3.21]
[1763416566492,10.20520638,130.67,130.58,3.28]
[1763416566696,3.16,130.66,130.59,5.64477671]
[1763416566997,3.16,130.66,130.59,8.92477671]
[1763416567596,3.16,130.63,130.61,0.05881714]
[1763416570997,3.16,130.63,130.61,3.33881714]
[1763416571298,3.20827291,130.64,130.61,3.33881714]
[1763416573197,0.04827291,130.64,130.62,3.28]
[1763416576599,7.04520638,130.71,130.64,3.28]
[1763416576600,3.16,130.7,130.64,3.28]
[1763416577703,0.05647607,130.68,130.66,3.33032649]
[1763416579893,0.05647607,130.68,130.66,0.05032649]
[1763416580202,0.05647607,130.68,130.66,3.37032649]
[1763416583107,0.05647607,130.68,130.67,3.32]
[1763416583306,3.24647607,130.68,130.66,3.37032649]
[1763416583510,0.05647607,130.68,130.66,3.37032649]
[1763416588814,0.05647607,130.68,130.66,6.98213926]
[1763416589016,0.05647607,130.68,130.67,3.32]
[1763416590317,3.24647607,130.68,130.66,0.05032649]
[1763416590513,3.24647607,130.68,130.66,3.37032649]
[1763416591721,3.24647607,130.68,130.66,0.05032649]
[1763416594119,3.24647607,130.68,130.66,3.29032649]
[1763416597122,0.05647607,130.68,130.66,6.90213926]
[1763416598115,0.05647607,130.68,130.67,3.24]
[1763416599625,0.05647607,130.68,130.66,3.29032649]
[1763416599818,3.51647607,130.68,130.66,3.29032649]
[1763416600211,3.51647607,130.68,130.66,0.05032649]
[1763416616927,7.12828884,130.68,130.66,0.05032649]
[1763416617128,3.46,130.67,130.66,0.05032649]
[1763416620635,3.66828884,130.68,130.66,3.29032649]
[1763416620636,0.05647607,130.68,130.66,3.29032649]
[1763416620832,0.05647607,130.68,130.66,0.05032649]
[1763416620833,3.51647607,130.68,130.66,0.05032649]
[1763416642550,3.51647607,130.68,130.66,3.41032649]
[1763416642745,0.05647607,130.68,130.66,3.41032649]
[1763416645241,3.40647607,130.68,130.66,0.05032649]
[1763416648147,3.40647607,130.68,130.66,3.41032649]
[1763416649251,3.40647607,130.68,130.66,0.05032649]
[1763416649643,3.40647607,130.68,130.66,3.41032649]
[1763416649845,3.40647607,130.68,130.66,0.05032649]
[1763416650346,3.40647607,130.68,130.66,3.41032649]
[1763416650548,0.05647607,130.68,130.66,3.41032649]
[1763416650944,3.35,130.71,130.66,3.41032649]
[1763416651852,3.40354509,130.7,130.66,3.41032649]
[1763416652041,3.40354509,130.7,130.68,3.36]
[1763416658252,3.52354509,130.7,130.68,3.36]
[1763416659955,0.05354509,130.7,130.68,3.36]
[1763416660251,3.52354509,130.7,130.68,3.36]
[1763416660652,0.05354509,130.7,130.68,3.36]
[1763416660846,3.52354509,130.7,130.68,3.36]
[1763416661558,0.05354509,130.7,130.68,3.36]
[1763416664550,3.47,130.74,130.69,3.45]
[1763416664748,3.47,130.75,130.69,3.45]
[1763416665151,3.47,130.75,130.7,3.45]
[1763416665548,4.80152226,130.77,130.7,3.45]
[1763416665757,3.47,130.77,130.72,3.45]
[1763416665952,7.13801381,130.79,130.72,3.45]
[1763416665953,3.47,130.79,130.72,3.45]
[1763416666152,3.47,130.79,130.74,3.45]
[1763416666960,3.47,130.8,130.74,3.45]
[1763416667158,3.47,130.8,130.76,0.05892973]
[1763416667361,3.47,130.8,130.76,3.50892973]
[1763416670761,6.97539651,130.83,130.76,3.50892973]
[1763416670762,3.47,130.82,130.76,3.50892973]
[1763416684865,3.27,130.84,130.76,3.50892973]
[1763416685163,3.27,130.84,130.8,3.43]
[1763416686457,5.64448533,130.87,130.8,3.43]
[1763416686657,3.27,130.86,130.83,3.43]
[1763416687274,3.27,130.87,130.83,3.43]
[1763416689059,3.27,130.84,130.82,0.05514146]
[1763416691874,3.27,130.83,130.82,0.05514146]
[1763416694773,8.91448533,130.87,130.82,3.48514146]
[1763416695076,3.27,130.86,130.82,3.48514146]
[1763416695464,3.27,130.83,130.82,0.05514146]
[1763416699780,3.34,130.81,130.78,3.43]
[1763416700678,3.34,130.81,130.78,3.4856609]
[1763416700885,3.39431283,130.81,130.78,3.4856609]
[1763416701379,0.05431283,130.81,130.78,3.4856609]
[1763416701779,3.39431283,130.81,130.78,3.4856609]
[1763416702485,0.05431283,130.81,130.78,3.4856609]
[1763416704981,3.39431283,130.81,130.78,3.4856609]
[1763416708794,7.0004942,130.81,130.78,3.4856609]
[1763416712099,0.05431283,130.81,130.78,3.4856609]
[1763416716509,3.54431283,130.81,130.78,3.4856609]
[1763416730622,3.54431283,130.81,130.78,0.0556609]
[1763416730906,3.49,130.79,130.78,0.0556609]
[1763416735504,3.49,130.79,130.74,3.44]
[1763416735706,3.49,130.77,130.74,3.44]
[1763416736505,3.5486784,130.77,130.74,3.49746201]
[1763416739816,3.49,130.74,130.7,3.44]
[1763416740212,3.49,130.72,130.68,3.44]
[1763416740515,3.49,130.7,130.65,3.44]
[1763416740711,3.49,130.68,130.66,0.05399299]
[1763416740911,3.54661801,130.69,130.66,3.49399299]
[1763416742505,0.05661801,130.69,130.66,3.49399299]
[1763416742708,0.05661801,130.69,130.66,7.10017436]
[1763416742906,3.35661801,130.69,130.67,3.28]
[1763416743506,3.35661801,130.69,130.66,3.33399299]
[1763416747618,0.05661801,130.69,130.66,3.33399299]
[1763416747825,0.05661801,130.69,130.68,3.28]
[1763416749418,0.05661801,130.69,130.67,3.28]
[1763416751124,0.05661801,130.69,130.68,6.88618137]
[1763416754926,3.3,130.74,130.69,3.28]
[1763416755130,3.3,130.74,130.71,3.28]
[1763416755831,3.35084353,130.74,130.71,3.33858372]
[1763416761925,3.35084353,130.74,130.71,0.05858372]
[1763416762127,3.35084353,130.74,130.71,3.24858372]
[1763416765130,3.26084353,130.74,130.72,6.79618137]
[1763416765333,3.26084353,130.74,130.72,3.60618137]
[1763416766136,0.05084353,130.74,130.73,3.19]
[1763416770338,0.05084353,130.74,130.71,0.05858372]
[1763416770339,3.26084353,130.74,130.71,3.24858372]
[1763416770531,0.05084353,130.74,130.72,3.19]
[1763416772942,0.05084353,130.74,130.73,8.83907154]
[1763416777437,0.05084353,130.74,130.73,3.2]
[1763416777634,0.05084353,130.74,130.71,5.69765526]
[1763416777635,3.39084353,130.74,130.72,3.2]
[1763416777945,3.39084353,130.74,130.66,8.83907154]
[1763416778138,3.34,130.73,130.66,8.83907154]
[1763416778338,3.34,130.73,130.66,3.2]
[1763416779045,3.39672124,130.71,130.68,0.05819579]
[1763416779237,3.39672124,130.71,130.68,3.25819579]
[1763416786850,3.39672124,130.71,130.68,0.05819579]
[1763416787649,3.39672124,130.71,130.68,3.25819579]
[1763416790148,3.39672124,130.71,130.68,0.05819579]
[1763416790758,3.39672124,130.71,130.68,3.25819579]
[1763416800365,0.05672124,130.71,130.68,3.25819579]
[1763416800560,0.05672124,130.71,130.69,3.2]
[1763416801267,3.39672124,130.71,130.69,3.2]
[1763416801464,0.05672124,130.71,130.69,3.2]
[1763416803468,3.41672124,130.71,130.68,0.05819579]
[1763416803670,3.41672124,130.71,130.68,3.39819579]
[1763416804573,3.41672124,130.71,130.68,0.05819579]
[1763416804966,3.41672124,130.71,130.63,5.63907154]
[1763416804967,3.36,130.69,130.63,3.34]
[1763416805161,3.36,130.68,130.63,3.34]
[1763416805866,0.05890947,130.67,130.64,0.04983987]
[1763416806066,3.36,130.66,130.64,0.04983987]
[1763416807967,0.05890947,130.67,130.64,3.38983987]
[1763416811580,3.41890947,130.67,130.64,3.38983987]
[1763416812370,3.41890947,130.67,130.64,0.04983987]
[1763416813966,9.05798101,130.67,130.64,0.04983987]
[1763416814275,3.36,130.66,130.64,0.04983987]
[1763416816976,0.05890947,130.67,130.64,3.38983987]
[1763416818571,7.10920109,130.73,130.66,3.37]
[1763416818572,3.48,130.73,130.66,3.37]
[1763416819475,0.05063603,130.71,130.66,3.37]
[1763416819671,9.16970757,130.71,130.68,0.04979681]
[1763416819978,3.48,130.7,130.68,0.05853726]
[1763416820164,9.11907154,130.69,130.68,0.05853726]
[1763416822382,3.48,130.68,130.58,5.63907154]
[1763416822586,3.48,130.66,130.61,3.37]
[1763416823484,3.53804073,130.65,130.62,0.05830575]
[1763416823987,3.53804073,130.65,130.62,3.42830575]
[1763416825478,0.05804073,130.65,130.62,3.42830575]
[1763416829285,3.53804073,130.65,130.62,3.42830575]
[1763416835586,0.05804073,130.65,130.62,3.42830575]
[1763416836995,3.22804073,130.65,130.62,3.42830575]
[1763416839492,3.17,130.63,130.62,0.05830575]
[1763416839698,3.17,130.63,130.57,3.48]
[1763416839894,3.17,130.6,130.53,3.48]
[1763416840083,3.17,130.6,130.54,3.48]
[1763416840688,0.05152496,130.58,130.56,3.530012]
[1763416842298,3.22152496,130.58,130.56,0.050012]
[1763416843888,0.05152496,130.58,130.56,3.530012]
[1763416844087,3.17,130.64,130.57,3.48]
[1763416844283,3.17,130.64,130.58,3.61488873]
[1763416844890,3.17,130.64,130.58,7.09488873]
[1763416845089,3.22118937,130.62,130.6,0.0501906]
[1763416858412,3.22118937,130.62,130.6,3.5301906]
[1763416858595,3.22118937,130.62,130.6,0.0501906]
[1763416861199,0.05118937,130.62,130.61,7.09488873]
[1763416861607,0.05118937,130.62,130.6,7.14507933]
[1763416861796,0.05118937,130.62,130.61,3.48]
[1763416864507,3.45118937,130.62,130.6,3.66507933]
[1763416864708,3.45118937,130.62,130.6,0.0501906]
[1763416865714,3.4,130.61,130.57,3.61488873]
[1763416866710,3.4,130.61,130.58,0.05472232]
[1763416867600,3.61488873,130.6,130.58,0.05472232]
[1763416867913,3.61488873,130.6,130.47,344.58599793]
[1763416867914,3.4,130.59,130.52,3.16]
[1763416868100,33.73408982,130.6,130.47,342.31424924]
[1763416868101,3.61488873,130.55,130.49,3.16]
[1763416868307,3.4,130.52,130.48,3.16]
[1763416868704,6.21012944,130.51,130.49,3.21153424]
[1763416868914,0.05135309,130.51,130.49,3.21153424]
[1763416869102,0.05135309,130.51,130.49,6.82642297]
[1763416869304,0.05135309,130.51,130.5,3.16]
[1763416869709,0.05135309,130.51,130.5,6.77488873]
[1763416869913,5.76240531,130.51,130.5,6.77488873]
[1763416870311,5.76240531,130.51,130.49,3.21153424]
[1763416870612,5.70844917,130.5,130.49,3.21153424]
[1763416871511,3.4,130.49,130.44,6.77488873]
[1763416871715,15.24609668,130.48,130.45,3.16]
[1763416871902,5.70478843,130.47,130.45,3.16]
[1763416872106,5.70478843,130.46,130.45,3.16]
[1763416872307,5.69370514,130.46,130.43,3.16]
[1763416872504,5.69393491,130.45,130.43,3.21145712]
[1763416872702,0.05023788,130.46,130.44,3.16]
[1763416872914,6.13372369,130.45,130.44,3.16]
[1763416873315,6.13372369,130.45,130.43,3.66634585]
[1763416873316,6.1338121,130.45,130.43,3.21145712]
[1763416873514,6.1338121,130.44,130.43,3.21145712]
[1763416876813,0.05023788,130.46,130.43,3.21145712]
[1763416877014,6.11510299,130.45,130.43,3.21145712]
[1763416877215,0.05023788,130.46,130.43,3.21145712]
[1763416877515,6.11254726,130.45,130.43,3.21145712]
[1763416877715,0.05023788,130.46,130.43,3.21145712]
[1763416878019,6.11183802,130.45,130.43,3.21145712]
[1763416878218,0.05023788,130.46,130.43,3.21145712]
[1763416878421,6.11073373,130.45,130.43,3.21145712]
[1763416878613,0.05023788,130.46,130.43,3.21145712]
[1763416878919,0.05023788,130.46,130.45,3.18]
[1763416879121,6.16109175,130.46,130.45,3.18]
[1763416881415,6.16109175,130.46,130.44,6.79488873]
[1763416881619,0.05023788,130.46,130.45,3.18]
[1763416881819,6.15459652,130.46,130.43,3.23145712]
[1763416882019,6.10435864,130.45,130.43,3.23145712]
[1763416882322,0.05023788,130.46,130.45,3.18]
[1763416882518,6.15453873,130.46,130.45,3.18]
[1763416882719,7.11333919,130.51,130.45,3.18]
[1763416882918,6.10734018,130.5,130.48,3.18]
[1763416883126,6.10734018,130.49,130.48,3.18]
[1763416888534,6.10734018,130.49,130.47,6.85032816]
[1763416888738,6.10734018,130.48,130.47,6.85032816]
[1763416889741,0.05756029,130.5,130.48,3.18]
[1763416890034,0.05756029,130.5,130.49,6.79488873]
[1763416890236,3.31,130.55,130.5,3.18]
[1763416890538,3.31,130.56,130.53,6.79488873]
[1763416891035,3.31,130.56,130.53,3.18]
[1763416891240,3.35894785,130.56,130.53,3.23613159]
[1763416901751,6.07495536,130.55,130.53,3.23613159]
[1763416902044,6.07495536,130.54,130.53,3.23613159]
[1763416907853,9.59495536,130.54,130.53,0.05613159]
[1763416908162,3.52,130.53,130.47,3.44]
[1763416908452,3.52,130.51,130.47,3.44]
[1763416908658,6.07495536,130.5,130.47,3.44]
[1763416908849,10.63774066,130.53,130.47,3.44]
[1763416909058,0.05323686,130.51,130.5,3.44]
[1763416909254,6.14440711,130.51,130.5,3.44]
[1763416914255,6.14440711,130.51,130.41,29.37230473]
[1763416914256,3.52,130.5,130.42,3.44]
[1763416914459,7.11774066,130.47,130.42,3.44]
[1763416914662,6.09117025,130.46,130.42,3.44]
[1763416914862,6.09117025,130.45,130.42,3.44]
[1763416915062,10.63774066,130.48,130.42,3.44]
[1763416915254,0.05220315,130.46,130.44,3.49587425]
[1763416915454,6.08368014,130.45,130.44,3.49587425]
[1763416915658,0.05220315,130.46,130.44,3.49587425]
[1763416919460,9.55873981,130.45,130.44,0.05587425]
[1763416919869,6.03873981,130.45,130.44,0.05587425]
[1763416921158,6.03873981,130.45,130.44,3.49587425]
[1763416922763,6.03873981,130.45,130.44,0.05587425]
[1763416923169,9.35873981,130.45,130.44,0.05587425]
[1763416923371,10.89873981,130.45,130.44,0.0017098]
[1763416923563,3.32,130.44,130.36,3.22]
[1763416923758,3.32,130.42,130.36,3.22]
[1763416923959,9.35873981,130.41,130.36,3.22]
[1763416924160,3.32,130.41,130.36,3.22]
[1763416924570,3.36915963,130.4,130.37,3.27591548]
[1763416925163,0.04915963,130.4,130.37,3.27591548]
[1763416926466,13.53327231,130.46,130.37,3.27591548]
[1763416926467,3.32,130.46,130.37,3.27591548]
[1763416926674,6.03569773,130.45,130.37,3.22]
[1763416926869,6.03569773,130.44,130.37,3.22]
[1763416927067,6.03569773,130.43,130.37,3.22]
[1763416927269,3.32,130.46,130.38,6.9111]
[1763416927466,0.0580548,130.43,130.41,3.27072489]
[1763416927666,9.3090002,130.42,130.41,0.05072489]
[1763416927863,5.9890002,130.42,130.41,0.05072489]
[1763416928964,9.3090002,130.42,130.41,0.05072489]
[1763416929176,0.0580548,130.43,130.41,3.27072489]
[1763416931570,3.32,130.48,130.41,3.27072489]
[1763416931873,3.32,130.48,130.41,3.22]
[1763416931874,5.97912895,130.47,130.41,3.22]
[1763416932174,3.32,130.48,130.41,3.22]
[1763416932360,3.32,130.48,130.43,3.22]
[1763416932563,3.32,130.48,130.45,3.22]
[1763416932564,0.05342217,130.47,130.45,3.22]
[1763416933168,3.37342217,130.47,130.44,33.11508156]
[1763416933365,9.29917426,130.46,130.44,0.05508156]
[1763416933570,3.32,130.46,130.44,0.05508156]
[1763416933772,9.29954021,130.45,130.44,0.05508156]
[1763416934564,10.83954021,130.45,130.44,0.05508156]
[1763416937675,9.29954021,130.45,130.44,0.05508156]
[1763416945476,3.21,130.44,130.35,8.93433534]
[1763416945676,3.21,130.44,130.31,91.94]
[1763416945677,3.21,130.4,130.32,3.27]
[1763416945980,3.21,130.38,130.29,8.93433534]
[1763416946180,3.21,130.36,130.29,8.93433534]
[1763416946382,0.04959175,130.34,130.31,3.32164518]
[1763416946583,3.25959175,130.34,130.31,3.32164518]
[1763416948176,0.04959175,130.34,130.31,3.32164518]
[1763416948375,3.25959175,130.34,130.31,3.32164518]
[1763416949382,0.04959175,130.34,130.31,3.32164518]
[1763416950078,3.25959175,130.34,130.31,3.32164518]
[1763416950280,5.97147433,130.33,130.31,3.32164518]
[1763416950477,3.25959175,130.34,130.31,3.32164518]
[1763416951276,9.18116483,130.33,130.31,0.05164518]
[1763416951477,9.18014022,130.32,130.31,0.05164518]
[1763416951883,5.97014022,130.32,130.31,0.05164518]
[1763416952679,3.2,130.33,130.31,0.05164518]
[1763416953486,0.04959175,130.34,130.31,3.23164518]
[1763416955588,5.96574991,130.33,130.31,3.23164518]
[1763416955787,0.04959175,130.34,130.31,3.23164518]
[1763416955977,5.96574991,130.33,130.31,3.23164518]
[1763416956182,0.04959175,130.34,130.31,3.23164518]
[1763416956581,3.24959175,130.34,130.31,3.23164518]
[1763416957382,5.96645914,130.33,130.31,3.23164518]
[1763416957581,3.24959175,130.34,130.31,3.23164518]
[1763416957783,5.96645914,130.33,130.31,3.23164518]
[1763416958080,3.24959175,130.34,130.31,3.23164518]
[1763416958281,5.96645914,130.33,130.31,3.23164518]
[1763416958490,3.24959175,130.34,130.31,3.23164518]
[1763416958689,5.96759271,130.33,130.31,3.23164518]
[1763416958990,3.24959175,130.34,130.31,3.23164518]
[1763416959191,5.97738868,130.33,130.31,3.23164518]
[1763416959489,3.24959175,130.34,130.31,3.23164518]
[1763416959690,5.97899785,130.33,130.31,3.23164518]
[1763416959891,3.24959175,130.34,130.31,3.23164518]
[1763416960194,5.97899785,130.33,130.31,3.23164518]
[1763416960385,3.24959175,130.34,130.31,3.23164518]
[1763416960691,9.17815974,130.33,130.31,0.05164518]
[1763416960890,3.2,130.33,130.31,0.05164518]
[1763416961290,3.24959175,130.34,130.31,3.23164518]
[1763416961490,5.97848456,130.33,130.31,3.23164518]
[1763416961691,3.24959175,130.34,130.31,0.05164518]
[1763416961895,5.97848456,130.33,130.31,0.05164518]
[1763416962091,3.2,130.33,130.31,0.05164518]
[1763416962489,0.04959175,130.34,130.31,3.23164518]
[1763416962693,9.17915285,130.33,130.31,3.23164518]
[1763416962898,3.2,130.33,130.31,3.23164518]
[1763416967206,5.98224754,130.32,130.31,3.23164518]
[1763416967406,3.2,130.33,130.31,3.23164518]
[1763416968102,3.2,130.33,130.31,0.05164518]
[1763416968300,12.81381688,130.32,130.31,0.05164518]
[1763416968497,18.69253782,130.32,130.31,0.05164518]
[1763416968695,12.81381688,130.32,130.31,0.05164518]
[1763416968902,19.93053848,130.32,130.31,0.05164518]
[1763416969307,12.81381688,130.32,130.31,0.05164518]
[1763416969896,0.04959175,130.34,130.31,3.23164518]
[1763416970097,5.98093018,130.33,130.31,3.23164518]
[1763416970414,3.24959175,130.34,130.31,3.23164518]
[1763416970608,5.98065146,130.33,130.31,3.23164518]
[1763416970808,3.24959175,130.34,130.31,3.23164518]
[1763416970999,5.9806495,130.33,130.31,3.23164518]
[1763416971204,12.8116113,130.32,130.31,0.05164518]
[1763416975913,9.1806495,130.32,130.31,0.05164518]
[1763416976717,5.9806495,130.32,130.31,3.23164518]
[1763416977021,0.04959175,130.34,130.31,3.23164518]
[1763416977718,0.04959175,130.34,130.33,3.18]
[1763416979817,0.04959175,130.34,130.31,0.05164518]
[1763416980013,0.04959175,130.34,130.32,3.18]
[1763416985815,7.1167216,130.39,130.32,3.18]
[1763416986219,7.1167216,130.39,130.33,3.33]
[1763416986825,0.04963547,130.37,130.35,3.38663823]
[1763416987025,3.45963547,130.37,130.35,3.38663823]
[1763416987231,0.04963547,130.37,130.35,3.38663823]
[1763416988921,6.00429935,130.36,130.35,3.38663823]
[1763416990318,0.02649422,130.36,130.35,3.38663823]
[1763416990622,0.04963547,130.37,130.35,3.38663823]
[1763416999633,0.04963547,130.37,130.35,10.29943823]
[1763416999835,0.04963547,130.37,130.36,2.87]
[1763417000434,0.04963547,130.37,130.36,9.7823]
[1763417000628,7.1167216,130.44,130.36,9.7823]
[1763417000629,3.5,130.46,130.37,2.82]
[1763417000828,3.5,130.46,130.32,59.51]
[1763417000829,3.5,130.46,130.43,2.82]
[1763417001532,3.55372633,130.46,130.43,2.87588515]
[1763417001723,3.55372633,130.46,130.32,36.46]
[1763417001724,7.12374208,130.44,130.38,6.44374208]
[1763417001930,3.5,130.43,130.38,6.44374208]
[1763417002124,3.5,130.43,130.39,2.82]
[1763417002530,9.45007943,130.42,130.39,2.82]
[1763417002731,5.95035954,130.41,130.39,2.82]
[1763417002930,3.54919745,130.42,130.39,2.86900147]
[1763417003235,5.9503605,130.41,130.39,2.86900147]
[1763417003538,3.54919745,130.42,130.39,2.86900147]
[1763417006742,3.54919745,130.42,130.39,0.04900147]
[1763417007039,3.5,130.41,130.39,0.04900147]
[1763417007432,9.44442507,130.4,130.39,0.04900147]
[1763417007741,3.5,130.4,130.39,0.04900147]
[1763417008841,0.04919745,130.42,130.39,0.04900147]
[1763417008842,0.04919745,130.42,130.39,2.86900147]
[1763417009037,0.04919745,130.42,130.4,6.44374208]
[1763417009335,0.04919745,130.42,130.41,2.82]
[1763417009740,0.04919745,130.42,130.4,6.44374208]
[1763417011140,3.54919745,130.42,130.4,3.62374208]
[1763417011444,3.54919745,130.42,130.39,2.86900147]
[1763417013044,0.04919745,130.42,130.39,2.86900147]
[1763417013243,3.26919745,130.42,130.39,2.86900147]
[1763417013438,0.04919745,130.42,130.39,2.86900147]
[1763417014741,3.26919745,130.42,130.39,2.86900147]
[1763417015343,0.04919745,130.42,130.39,2.86900147]
[1763417015842,3.26919745,130.42,130.39,0.04900147]
[1763417016047,5.94130176,130.41,130.39,0.04900147]
[1763417016241,3.22,130.4,130.39,0.04900147]
[1763417016742,0.04919745,130.42,130.39,0.04900147]
[1763417016951,3.22,130.4,130.39,0.04900147]
[1763417017345,0.04919745,130.42,130.39,0.04900147]
[1763417017552,3.26919745,130.42,130.39,2.86900147]
[1763417017946,3.26919745,130.42,130.39,0.04900147]
[1763417018155,3.22,130.4,130.39,0.04900147]
[1763417018652,3.26919745,130.42,130.39,0.04900147]
[1763417018857,3.22,130.4,130.39,0.04900147]
[1763417019244,9.1768259,130.4,130.39,0.04900147]
[1763417019651,0.04919745,130.42,130.39,8.53375093]
[1763417019843,0.04919745,130.42,130.4,2.82]
[1763417020243,10.3367216,130.51,130.42,2.82]
[1763417020444,9.17549614,130.5,130.45,2.82]
[1763417020650,5.95549614,130.49,130.45,2.82]
[1763417020845,3.22,130.5,130.45,2.82]
[1763417021151,9.17500443,130.49,130.45,2.82]
[1763417021351,5.95500443,130.48,130.46,2.86900326]
[1763417021550,3.26919156,130.49,130.46,2.86900326]
[1763417021748,5.95457425,130.48,130.46,2.86900326]
[1763417021943,0.04919156,130.49,130.46,2.86900326]
[1763417021944,0.04919156,130.49,130.46,8.53375272]
[1763417022148,0.04919156,130.49,130.47,2.82]
[1763417028154,3.22,130.47,130.46,0.04900326]
[1763417028457,5.93463982,130.47,130.46,2.86900326]
[1763417029061,0.04919156,130.49,130.46,2.86900326]
[1763417029445,0.04919156,130.49,130.48,2.82]
[1763417033850,10.3367216,130.59,130.49,2.82]
[1763417034054,5.92779345,130.58,130.53,2.82]
[1763417034250,5.92779345,130.57,130.53,2.82]
[1763417034450,5.92779345,130.56,130.53,2.82]